bitfinex/quotes_BTCUSD_20250226
["timestamp","ask_amount","ask_price","bid_price","bid_amount"]
[1740530679222,0.20223281,88388.0,88387.0,0.00484227]
[1740530680569,0.03252681,88388.0,88387.0,0.25075027]
[1740530680706,0.03252681,88388.0,88387.0,0.28092613]
[1740530680905,0.03252681,88388.0,88387.0,0.1209242]
[1740530681312,0.03252681,88388.0,88387.0,0.2906322]
[1740530682368,0.03252681,88388.0,88387.0,0.3386322]
[1740530683879,0.1772147,88396.0,88387.0,0.1689242]
[1740530684076,0.169694,88395.0,88388.0,0.04244195]
[1740530684271,0.169691,88396.0,88390.0,0.169702]
[1740530684473,0.16969,88397.0,88390.0,0.169702]
[1740530684696,0.169687,88398.0,88391.0,0.00969239]
[1740530684899,0.169687,88398.0,88391.0,0.169699]
[1740530685108,0.0008486,88411.0,88393.0,0.0789]
[1740530685280,0.0008486,88411.0,88394.0,0.00158359]
[1740530685489,0.169675,88404.0,88395.0,0.169691]
[1740530685850,0.226229,88406.0,88395.0,0.0096845]
[1740530686050,0.169673,88406.0,88399.0,0.169685]
[1740530686248,0.169676,88404.0,88397.0,0.169688]
[1740530686477,0.02228143,88406.0,88400.0,0.00967465]
[1740530686694,0.32228143,88406.0,88401.0,0.0496]
[1740530686836,0.3,88406.0,88404.0,0.0779]
[1740530687250,0.3,88406.0,88405.0,0.00966479]
[1740530687858,0.55084944,88406.0,88392.0,0.226263]
[1740530688060,0.32461944,88406.0,88387.0,0.35301727]
[1740530688260,0.49129244,88406.0,88395.0,0.306857]
[1740530688664,0.02261944,88406.0,88399.0,0.169683]
[1740530688848,0.169673,88405.0,88399.0,0.169683]
[1740530689052,0.3,88405.0,88400.0,0.00966054]
[1740530689294,0.226234,88404.0,88400.0,0.00966054]
[1740530689490,0.3,88405.0,88390.0,0.169702]
[1740530689688,0.169679,88402.0,88401.0,0.00645655]
[1740530689900,0.001,88406.0,88388.0,0.0776]
[1740530690099,0.3,88401.0,88396.0,0.16969]
[1740530690419,0.3,88401.0,88394.0,0.27151223]
[1740530690420,0.3,88401.0,88400.0,0.0796]
[1740530690839,0.3,88401.0,88400.0,0.1272]
[1740530691361,0.3,88402.0,88400.0,0.1272]
[1740530691561,0.3,88402.0,88401.0,0.02736358]
[1740530691944,0.3,88402.0,88401.0,0.03036358]
[1740530692103,0.3,88403.0,88401.0,0.02736358]
[1740530692500,0.3,88403.0,88400.0,0.1252]
[1740530692501,0.3,88403.0,88400.0,0.1282]
[1740530692706,0.3,88403.0,88401.0,0.001]
[1740530692932,0.3,88403.0,88401.0,0.17068]
[1740530693132,0.3,88403.0,88401.0,0.17368]
[1740530693387,0.32273604,88406.0,88401.0,0.17068]
[1740530693741,0.32273604,88406.0,88401.0,0.001]
[1740530693921,0.49240804,88406.0,88400.0,0.1252]
[1740530694122,0.3,88404.0,88400.0,0.1252]
[1740530694328,0.469676,88404.0,88401.0,0.036145]
[1740530694714,0.469676,88404.0,88401.0,0.035145]
[1740530695339,0.02373604,88406.0,88401.0,0.035145]
[1740530695548,0.3,88405.0,88401.0,0.035145]
[1740530695758,0.469674,88405.0,88401.0,0.035145]
[1740530695963,0.469674,88405.0,88402.0,0.03747281]
[1740530696738,0.02099874,88404.0,88402.0,0.03747281]
[1740530697445,0.02099874,88404.0,88403.0,0.169677]
[1740530697875,0.02099874,88404.0,88403.0,0.17612961]
[1740530699246,0.03149583,88404.0,88403.0,0.17612961]
[1740530699507,0.03149583,88404.0,88403.0,0.00645261]
[1740530699508,0.50117083,88404.0,88403.0,0.00645261]
[1740530699753,0.50117083,88404.0,88403.0,0.002]
[1740530699946,0.33149583,88404.0,88403.0,0.002]
[1740530700192,0.50117083,88404.0,88403.0,0.002]
[1740530700661,0.50117083,88404.0,88403.0,0.00745175]
[1740530700895,0.50117083,88404.0,88403.0,0.002]
[1740530701200,0.169675,88404.0,88403.0,0.002]
[1740530702120,0.20325757,88404.0,88403.0,0.002]
[1740530704498,0.20525757,88404.0,88403.0,0.002]
[1740530704703,0.171675,88404.0,88403.0,0.002]
[1740530704901,0.169675,88404.0,88403.0,0.002]
[1740530705076,0.170675,88404.0,88403.0,0.002]
[1740530705520,0.169683,88400.0,88399.0,0.000424]
[1740530706900,0.169683,88400.0,88399.0,0.003424]
[1740530713647,0.20123811,88400.0,88399.0,0.003424]
[1740530714825,0.19071984,88400.0,88399.0,0.003424]
[1740530716970,0.49071984,88400.0,88399.0,0.003424]
[1740530718000,0.49271984,88400.0,88399.0,0.003424]
[1740530718156,0.49271984,88400.0,88399.0,0.000424]
[1740530722295,0.49271984,88400.0,88399.0,0.0083964]
[1740530723156,0.49271984,88400.0,88399.0,0.000424]
[1740530724281,0.49071984,88400.0,88399.0,0.000424]
[1740530724502,0.469683,88400.0,88399.0,0.000424]
[1740530724724,0.469683,88400.0,88399.0,0.003424]
[1740530724957,0.469683,88400.0,88399.0,0.000424]
[1740530725312,0.470683,88400.0,88399.0,0.001424]
[1740530725719,0.469683,88400.0,88399.0,0.000424]
[1740530725920,0.469683,88400.0,88399.0,0.002424]
[1740530726102,0.169683,88400.0,88399.0,0.002424]
[1740530726303,0.169683,88400.0,88399.0,0.000424]
[1740530728185,0.169683,88400.0,88399.0,0.003424]
[1740530728602,0.000848,88404.0,88399.0,0.003424]
[1740530728742,0.000848,88404.0,88403.0,0.0815]
[1740530728947,0.000848,88404.0,88403.0,0.1114801]
[1740530729166,0.000848,88404.0,88403.0,0.0869634]
[1740530729685,0.170523,88404.0,88403.0,0.0054634]
[1740530730103,0.000848,88404.0,88399.0,0.000424]
[1740530730449,0.169683,88400.0,88399.0,0.001424]
[1740530730602,0.000848,88404.0,88399.0,0.127124]
[1740530730804,0.169683,88400.0,88399.0,0.127124]
[1740530731213,0.169683,88400.0,88399.0,0.045624]
[1740530731564,0.169683,88400.0,88399.0,0.000424]
[1740530732415,0.169683,88400.0,88399.0,0.001424]
[1740530732627,0.169683,88400.0,88399.0,0.000424]
[1740530734643,0.171683,88400.0,88399.0,0.000424]
[1740530734950,0.169683,88400.0,88399.0,0.000424]
[1740530735420,0.170683,88400.0,88399.0,0.000424]
[1740530735629,0.170683,88400.0,88399.0,0.002424]
[1740530735849,0.170683,88400.0,88399.0,0.000424]
[1740530736337,0.170683,88400.0,88399.0,0.003424]
[1740530736505,0.169683,88400.0,88399.0,0.003424]
[1740530737065,0.169683,88400.0,88399.0,0.000424]
[1740530737395,0.169683,88400.0,88399.0,0.003424]
[1740530738068,0.12972412,88401.0,88399.0,0.079324]
[1740530738206,0.169681,88401.0,88400.0,0.0079324]
[1740530738414,0.000848,88404.0,88400.0,0.01339759]
[1740530738824,0.170524,88404.0,88400.0,0.01339759]
[1740530739066,0.169681,88401.0,88400.0,0.01339759]
[1740530739326,0.169681,88401.0,88400.0,0.0079324]
[1740530739548,0.169677,88403.0,88400.0,0.01639716]
[1740530739745,0.169679,88402.0,88401.0,0.00927212]
[1740530740125,0.000848,88404.0,88401.0,0.00927212]
[1740530740325,0.169678,88403.0,88401.0,0.00927212]
[1740530740756,0.000848,88404.0,88402.0,0.049]
[1740530740951,0.000848,88404.0,88403.0,0.01345961]
[1740530741234,0.170523,88404.0,88403.0,0.01891591]
[1740530741563,0.000848,88404.0,88403.0,0.01345961]
[1740530741762,0.000848,88404.0,88403.0,0.01891591]
[1740530742610,0.000848,88404.0,88403.0,0.18859291]
[1740530742783,0.000848,88404.0,88403.0,0.18313661]
[1740530742971,0.000848,88404.0,88403.0,0.09491723]
[1740530743182,0.170523,88404.0,88403.0,0.09491723]
[1740530743382,0.170523,88404.0,88403.0,0.09691723]
[1740530743577,0.000848,88404.0,88403.0,0.09145961]
[1740530743804,0.000848,88404.0,88403.0,0.08945961]
[1740530744034,0.000848,88404.0,88403.0,0.09491723]
[1740530744577,0.000848,88404.0,88403.0,0.08945961]
[1740530744983,0.000848,88404.0,88403.0,0.09491723]
[1740530745653,0.000848,88404.0,88403.0,0.09691723]
[1740530746006,0.000848,88404.0,88403.0,0.09491723]
[1740530746224,0.001848,88404.0,88403.0,0.09991723]
[1740530746773,0.001848,88404.0,88403.0,0.09491723]
[1740530746967,0.002848,88404.0,88403.0,0.09991723]
[1740530747259,0.001848,88404.0,88403.0,0.09491723]
[1740530747400,0.002848,88404.0,88403.0,0.09491723]
[1740530747631,0.003848,88404.0,88403.0,0.09991723]
[1740530747842,0.003848,88404.0,88403.0,0.26959423]
[1740530751187,0.003848,88404.0,88403.0,0.09991723]
[1740530752315,0.003848,88404.0,88403.0,0.26959423]
[1740530752568,0.003848,88404.0,88403.0,0.59469423]
[1740530756251,0.169651,88417.0,88408.0,0.169666]
[1740530756452,0.0008482,88443.0,88409.0,0.05532761]
[1740530756662,0.169645,88420.0,88410.0,0.169663]
[1740530756871,0.169645,88420.0,88411.0,0.00543759]
[1740530757074,0.22617,88429.0,88412.0,0.0811]
[1740530757384,0.169649,88418.0,88413.0,0.0054306]
[1740530757679,0.169649,88418.0,88414.0,0.02273173]
[1740530758015,0.169649,88418.0,88415.0,0.00542666]
[1740530758431,0.169649,88418.0,88414.0,0.02273173]
[1740530758633,0.169649,88418.0,88416.0,0.00542469]
[1740530758862,0.169649,88418.0,88414.0,0.02273173]
[1740530758863,0.2262,88417.0,88414.0,0.02273173]
[1740530759073,0.2262,88417.0,88412.0,0.0811]
[1740530759266,0.169657,88414.0,88412.0,0.0811]
[1740530760239,9.973e-05,88418.0,88412.0,0.0811]
[1740530760376,0.22629873,88418.0,88412.0,0.0811]
[1740530760577,9.973e-05,88418.0,88412.0,0.0811]
[1740530760796,0.169656,88414.0,88413.0,0.00811]
[1740530761011,0.16937348,88414.0,88413.0,0.00811]
[1740530761619,0.16927693,88414.0,88413.0,0.00811]
[1740530761883,9.973e-05,88418.0,88413.0,0.00811]
[1740530762258,9.973e-05,88418.0,88414.0,0.0478]
[1740530762455,9.973e-05,88418.0,88415.0,0.0156844]
[1740530762902,9.973e-05,88418.0,88416.0,0.0054181]
[1740530764435,9.973e-05,88418.0,88416.0,0.0064181]
[1740530764849,0.16965,88417.0,88416.0,0.0064181]
[1740530765300,0.00052363,88418.0,88416.0,0.0064181]
[1740530765508,0.00052363,88418.0,88417.0,0.03280329]
[1740530765931,0.00052363,88418.0,88417.0,0.0382184]
[1740530766555,0.226182,88425.0,88417.0,0.0382184]
[1740530766722,0.226182,88425.0,88417.0,0.00541511]
[1740530766937,0.02756166,88426.0,88417.0,0.00641511]
[1740530767148,0.169633,88426.0,88417.0,0.00641511]
[1740530767355,0.226157,88434.0,88417.0,0.00541511]
[1740530767505,0.169636,88425.0,88418.0,0.01583739]
[1740530767717,0.226177,88427.0,88418.0,0.02124656]
[1740530767932,0.169637,88424.0,88418.0,0.02124656]
[1740530768197,0.226157,88434.0,88419.0,0.04867042]
[1740530768408,0.169638,88424.0,88418.0,0.00540917]
[1740530768628,0.169638,88424.0,88420.0,0.00540523]
[1740530768844,0.169638,88424.0,88419.0,0.0054072]
[1740530769061,0.169638,88424.0,88414.0,0.2183038]
[1740530769263,0.169638,88424.0,88420.0,0.00540523]
[1740530769399,0.169638,88424.0,88415.0,0.05256238]
[1740530769626,0.02775135,88426.0,88421.0,0.00540326]
[1740530769839,0.226174,88428.0,88416.0,0.169651]
[1740530770045,0.169634,88426.0,88422.0,0.00540129]
[1740530770284,0.169634,88426.0,88415.0,0.169652]
[1740530770543,0.009,88434.0,88416.0,0.00541311]
[1740530770784,0.169638,88424.0,88414.0,0.2183028]
[1740530771006,0.169638,88424.0,88417.0,0.00541114]
[1740530771239,0.169638,88424.0,88418.0,0.05310229]
[1740530771470,0.169638,88424.0,88420.0,0.002]
[1740530771692,0.169635,88425.0,88421.0,0.00540326]
[1740530771899,0.169639,88423.0,88422.0,0.01951552]
[1740530772109,0.169639,88423.0,88414.0,0.0506478]
[1740530772335,0.169639,88423.0,88422.0,0.00540129]
[1740530772547,0.169639,88423.0,88414.0,0.0486478]
[1740530772721,0.169639,88423.0,88422.0,0.00540129]
[1740530772952,0.169639,88423.0,88420.0,0.002]
[1740530773162,0.169639,88423.0,88420.0,0.02403048]
[1740530773378,0.169639,88423.0,88421.0,0.00540326]
[1740530773581,0.169639,88423.0,88420.0,0.02203048]
[1740530773782,0.169639,88423.0,88422.0,0.00540129]
[1740530773986,0.169639,88423.0,88420.0,0.02203048]
[1740530774349,0.169641,88422.0,88421.0,0.02943669]
[1740530774558,0.169649,88418.0,88414.0,0.0486478]
[1740530774964,0.169649,88418.0,88414.0,0.0506478]
[1740530775154,0.169647,88419.0,88414.0,0.0486478]
[1740530775956,0.169647,88419.0,88414.0,0.0496478]
[1740530776183,0.226159,88433.0,88415.0,0.05266338]
[1740530776386,0.169654,88415.0,88414.0,0.0496478]
[1740530776559,0.169654,88415.0,88414.0,0.0008478]
[1740530776792,0.169654,88415.0,88414.0,0.0058478]
[1740530776996,0.3833,88433.0,88414.0,0.0058478]
[1740530777380,0.169652,88416.0,88414.0,0.0058478]
[1740530777586,0.226162,88432.0,88414.0,0.0058478]
[1740530777792,0.169642,88422.0,88415.0,0.02320658]
[1740530778034,0.3,88431.0,88415.0,0.02320658]
[1740530778174,0.3,88431.0,88414.0,0.0008478]
[1740530778376,0.169646,88420.0,88414.0,0.0018478]
[1740530778583,0.169643,88421.0,88414.0,0.0018478]
[1740530779008,0.169647,88419.0,88414.0,0.0008478]
[1740530779226,0.169647,88419.0,88414.0,0.01789928]
[1740530779407,0.0004239,88425.0,88414.0,0.01789928]
[1740530779760,0.169651,88417.0,88414.0,0.0008478]
[1740530780123,0.226197,88419.0,88414.0,0.0018478]
[1740530780353,0.169649,88418.0,88414.0,0.0018478]
[1740530780538,0.226182,88424.0,88414.0,0.0018478]
[1740530780741,0.169654,88415.0,88414.0,0.0018478]
[1740530781078,0.469654,88415.0,88414.0,0.0018478]
[1740530781400,0.469654,88415.0,88414.0,0.0008478]
[1740530781678,0.469654,88415.0,88414.0,0.0028478]
[1740530782072,0.469654,88415.0,88414.0,0.0008478]
[1740530782268,0.469654,88415.0,88414.0,0.0028478]
[1740530782512,0.460654,88415.0,88414.0,0.0008478]
[1740530782966,0.457654,88415.0,88414.0,0.0018478]
[1740530783377,0.469654,88415.0,88414.0,0.0018478]
[1740530784207,0.469654,88415.0,88414.0,0.0008478]
[1740530784418,0.469654,88415.0,88414.0,0.0028478]
[1740530785589,0.469654,88415.0,88414.0,0.0008478]
[1740530785987,0.469654,88415.0,88414.0,0.0028478]
[1740530788335,0.3,88415.0,88414.0,0.0028478]
[1740530788896,0.469654,88415.0,88414.0,0.0028478]
[1740530789444,0.3,88415.0,88414.0,0.0028478]
[1740530789795,0.469654,88415.0,88414.0,0.02475938]
[1740530789995,0.469654,88415.0,88414.0,0.0028478]
[1740530792497,0.3,88415.0,88414.0,0.0028478]
[1740530792699,0.469654,88415.0,88414.0,0.0028478]
[1740530803155,0.4700779,88415.0,88414.0,0.0028478]
[1740530805123,0.4700779,88415.0,88414.0,0.0816478]
[1740530805326,0.4700779,88415.0,88414.0,0.09447258]
[1740530807424,0.0004239,88415.0,88414.0,0.09447258]
[1740530807633,0.1700779,88415.0,88414.0,0.09447258]
[1740530807814,0.4700779,88415.0,88414.0,0.09447258]
[1740530810224,0.3004239,88415.0,88414.0,0.09447258]
[1740530810661,0.4700779,88415.0,88414.0,0.09447258]
[1740530813683,0.169654,88415.0,88414.0,0.09447258]
[1740530814650,0.1700779,88415.0,88414.0,0.09447258]
[1740530815232,0.0004239,88415.0,88414.0,0.09447258]
[1740530816017,0.1700779,88415.0,88414.0,0.09447258]
[1740530816247,0.0004239,88415.0,88414.0,0.09447258]
[1740530816423,0.1700779,88415.0,88414.0,0.09447258]
[1740530816823,0.0004239,88415.0,88414.0,0.09447258]
[1740530817643,0.1700779,88415.0,88414.0,0.09447258]
[1740530820688,0.1700779,88415.0,88414.0,0.01567258]
[1740530820868,0.1700779,88415.0,88414.0,0.0028478]
[1740530822672,0.2484779,88415.0,88414.0,0.0028478]
[1740530823101,0.169677,88403.0,88402.0,0.3251]
[1740530823381,0.169679,88402.0,88401.0,0.000424]
[1740530824805,0.169679,88402.0,88401.0,0.004424]
[1740530829828,0.00860196,88404.0,88401.0,0.004424]
[1740530830049,0.169677,88403.0,88402.0,0.0084348]
[1740530831568,0.169677,88403.0,88402.0,0.0124348]
[1740530832937,0.226221,88410.0,88402.0,0.0124348]
[1740530832938,0.169667,88409.0,88402.0,0.0124348]
[1740530833111,0.0004761,88415.0,88403.0,0.0761]
[1740530833112,0.226208,88414.0,88403.0,0.0761]
[1740530833315,0.0004761,88415.0,88404.0,0.03781464]
[1740530833530,0.0004761,88415.0,88413.0,0.169657]
[1740530833717,0.0004761,88415.0,88407.0,0.0782]
[1740530833938,0.169656,88414.0,88407.0,0.0782]
[1740530834179,0.172656,88414.0,88407.0,0.0782]
[1740530834358,0.172656,88414.0,88408.0,0.05310658]
[1740530834554,0.003,88414.0,88408.0,0.05310658]
[1740530834801,0.0004761,88415.0,88408.0,0.05310658]
[1740530835013,0.0004761,88415.0,88414.0,0.248756]
[1740530835418,0.0004761,88415.0,88414.0,0.1275]
[1740530835613,0.0004761,88415.0,88414.0,0.14556066]
[1740530836679,0.0014761,88415.0,88414.0,0.32221666]
[1740530836908,0.0024761,88415.0,88414.0,0.32121666]
[1740530837082,0.0024761,88415.0,88414.0,0.15156066]
[1740530837282,0.0034761,88415.0,88414.0,0.15856066]
[1740530837683,0.0024761,88415.0,88414.0,0.15256066]
[1740530837918,0.0014761,88415.0,88414.0,0.15256066]
[1740530838121,0.0004761,88415.0,88414.0,0.31521666]
[1740530838645,0.0014761,88415.0,88414.0,0.64631666]
[1740530839476,0.0024761,88415.0,88414.0,0.65231666]
[1740530839629,0.0024761,88415.0,88414.0,0.64631666]
[1740530839809,0.0014761,88415.0,88414.0,0.64031666]
[1740530840152,0.0034761,88415.0,88414.0,0.65231666]
[1740530840307,0.0024761,88415.0,88414.0,0.65231666]
[1740530840508,0.0024761,88415.0,88414.0,0.65731666]
[1740530840712,0.0024761,88415.0,88414.0,0.65131666]
[1740530841199,0.0034761,88415.0,88414.0,0.65731666]
[1740530841490,0.0024761,88415.0,88414.0,0.65131666]
[1740530841900,0.0034761,88415.0,88414.0,0.65731666]
[1740530842513,0.0014761,88415.0,88414.0,0.47666066]
[1740530843019,0.0024761,88415.0,88414.0,0.48366066]
[1740530843221,0.1711301,88415.0,88414.0,0.47066066]
[1740530843449,0.1711301,88415.0,88414.0,0.39856066]
[1740530843627,0.1731301,88415.0,88414.0,0.3391]
[1740530843827,0.1721301,88415.0,88414.0,0.3321]
[1740530843987,0.4721301,88415.0,88414.0,0.3391]
[1740530844197,0.4731301,88415.0,88414.0,0.3391]
[1740530844399,0.4721301,88415.0,88414.0,0.3321]
[1740530844594,0.4711301,88415.0,88414.0,0.03329482]
[1740530844821,0.169665,88409.0,88408.0,0.0008482]
[1740530845704,0.469665,88409.0,88408.0,0.0008482]
[1740530846288,0.470665,88409.0,88408.0,0.0048482]
[1740530846488,0.470665,88409.0,88408.0,0.0008482]
[1740530846935,0.471665,88409.0,88408.0,0.0048482]
[1740530847334,0.471665,88409.0,88408.0,0.0088482]
[1740530852138,0.469673,88405.0,88404.0,0.0008482]
[1740530853559,0.470673,88405.0,88404.0,0.0048482]
[1740530853761,0.470673,88405.0,88404.0,0.0078482]
[1740530856168,0.301,88405.0,88404.0,0.0078482]
[1740530856290,0.470673,88405.0,88404.0,0.15884232]
[1740530858387,0.470673,88405.0,88404.0,0.07684232]
[1740530858794,0.301,88405.0,88404.0,0.07684232]
[1740530859174,0.001,88405.0,88404.0,0.07684232]
[1740530863428,0.170673,88405.0,88404.0,0.07684232]
[1740530864666,0.001,88405.0,88404.0,0.07684232]
[1740530866287,0.170673,88405.0,88404.0,0.07684232]
[1740530868767,0.170673,88405.0,88404.0,0.0078482]
[1740530870701,0.170673,88405.0,88404.0,2e-07]
[1740530871507,0.001,88405.0,88401.0,0.000424]
[1740530871723,0.169679,88402.0,88401.0,0.000424]
[1740530872619,0.169679,88402.0,88401.0,0.001424]
[1740530873146,0.169679,88402.0,88401.0,0.000424]
[1740530873474,0.169679,88402.0,88401.0,0.003424]
[1740530874638,0.169679,88402.0,88401.0,0.002424]
[1740530882165,0.3,88402.0,88399.0,0.000424]
[1740530882388,0.169683,88400.0,88399.0,0.000424]
[1740530882553,0.16498603,88400.0,88399.0,0.000424]
[1740530884096,0.169702,88390.0,88384.0,0.0473]
[1740530885079,0.226263,88393.0,88384.0,0.0473]
[1740530885356,0.169702,88390.0,88384.0,0.0473]
[1740530886316,0.227263,88393.0,88384.0,0.0473]
[1740530886509,0.169702,88390.0,88384.0,0.0473]
[1740530886718,0.169702,88390.0,88389.0,0.35053554]
[1740530887042,0.470702,88390.0,88389.0,0.35053554]
[1740530887844,0.471702,88390.0,88389.0,0.35053554]
[1740530889107,0.471702,88390.0,88389.0,0.42973554]
[1740530889320,0.002,88390.0,88389.0,0.42973554]
[1740530890153,0.171702,88390.0,88389.0,0.42973554]
[1740530890506,0.20110864,88390.0,88389.0,0.42973554]
[1740530890666,0.03140664,88390.0,88389.0,0.42973554]
[1740530891325,0.03140664,88390.0,88389.0,0.59943954]
[1740530891505,0.03140664,88390.0,88389.0,0.42973554]
[1740530891712,0.03140664,88390.0,88389.0,0.59943954]
[1740530892897,0.03140664,88390.0,88389.0,0.42973554]
[1740530893310,0.03140664,88390.0,88389.0,0.59943954]
[1740530893940,0.03140664,88390.0,88389.0,0.64733954]
[1740530894703,0.002,88390.0,88389.0,0.64733954]
[1740530896013,0.02990821,88399.0,88398.0,0.168687]
[1740530896378,0.0008484,88402.0,88401.0,0.249081]
[1740530896494,0.0008484,88402.0,88401.0,0.248081]
[1740530897297,0.0008484,88402.0,88401.0,0.0794]
[1740530897814,0.1705274,88402.0,88401.0,0.0784]
[1740530898036,0.1715274,88402.0,88401.0,0.1125794]
[1740530898251,0.1705274,88402.0,88401.0,0.1085794]
[1740530898484,0.1705274,88402.0,88401.0,0.0834]
[1740530898678,0.1715274,88402.0,88401.0,0.0904]
[1740530899044,0.2003208,88402.0,88401.0,0.0854]
[1740530899248,0.2003208,88402.0,88401.0,0.0904]
[1740530899503,0.2003208,88402.0,88401.0,0.012]
[1740530899702,0.2003208,88402.0,88401.0,0.0349394]
[1740530900103,0.2003208,88402.0,88401.0,0.012]
[1740530901832,0.0306418,88402.0,88401.0,0.012]
[1740530902271,0.2003208,88402.0,88401.0,0.012]
[1740530903015,0.0306418,88402.0,88401.0,0.012]
[1740530903646,0.0306418,88402.0,88401.0,0.181681]
[1740530903846,0.0306418,88402.0,88401.0,0.23527277]
[1740530904370,0.0306418,88402.0,88401.0,0.06559177]
[1740530904567,0.0306418,88402.0,88401.0,0.012]
[1740530904962,0.2003208,88402.0,88401.0,0.012]
[1740530905900,0.0306418,88402.0,88401.0,0.012]
[1740530906097,0.2003208,88402.0,88401.0,0.012]
[1740530907608,0.0306418,88402.0,88401.0,0.012]
[1740530907825,0.0306418,88402.0,88401.0,0.02594]
[1740530909006,0.2003208,88402.0,88401.0,0.02594]
[1740530915040,0.5003208,88402.0,88401.0,0.012]
[1740530916329,0.5003208,88402.0,88401.0,0.007]
[1740530917000,0.1697,88391.0,88389.0,0.3643996]
[1740530917552,0.169702,88390.0,88389.0,0.3643996]
[1740530917768,0.169702,88390.0,88389.0,0.40918216]
[1740530918628,0.001,88391.0,88389.0,0.41718216]
[1740530918802,0.001,88391.0,88389.0,0.41318216]
[1740530919024,0.1707,88391.0,88389.0,0.40918216]
[1740530919152,0.001,88390.0,88389.0,0.41218216]
[1740530919362,0.001,88390.0,88389.0,0.41618216]
[1740530920204,0.1697,88391.0,88389.0,0.41318216]
[1740530920405,0.1697,88391.0,88390.0,0.02783525]
[1740530920603,0.001,88391.0,88390.0,0.02783525]
[1740530920809,0.3,88395.0,88390.0,0.02783525]
[1740530921016,0.169698,88393.0,88390.0,0.02783525]
[1740530921215,0.3,88400.0,88390.0,0.02683525]
[1740530921376,0.169698,88392.0,88391.0,0.04478256]
[1740530921820,0.169698,88392.0,88391.0,0.04378256]
[1740530922608,0.169698,88392.0,88391.0,0.04678256]
[1740530922838,0.469698,88392.0,88391.0,0.003]
[1740530923212,0.469698,88392.0,88391.0,0.0034242]
[1740530924133,0.469698,88392.0,88391.0,0.0054242]
[1740530924335,0.470698,88392.0,88391.0,0.0024242]
[1740530924648,0.470698,88392.0,88391.0,0.0064242]
[1740530924853,0.470698,88392.0,88391.0,0.03859674]
[1740530927853,0.470698,88392.0,88391.0,0.0064242]
[1740530930526,0.469698,88392.0,88391.0,0.0024242]
[1740530930739,0.469698,88392.0,88391.0,0.0014242]
[1740530930927,0.470698,88392.0,88391.0,0.0014242]
[1740530931133,0.470698,88392.0,88391.0,0.0004242]
[1740530931331,0.470698,88392.0,88391.0,0.0024242]
[1740530931531,0.469698,88392.0,88391.0,0.0024242]
[1740530933358,0.469698,88392.0,88391.0,0.04166453]
[1740530933558,0.469698,88392.0,88391.0,0.08686453]
[1740530933559,0.3,88392.0,88391.0,0.08686453]
[1740530934922,0.469698,88392.0,88391.0,0.00989199]
[1740530935797,0.4705464,88392.0,88391.0,0.00989199]
[1740530935974,0.4715464,88392.0,88391.0,0.00989199]
[1740530936724,0.4715464,88392.0,88391.0,0.00789199]
[1740530937087,0.4715464,88392.0,88391.0,0.00889199]
[1740530937292,0.4715464,88392.0,88391.0,0.04031131]
[1740530937496,0.4705464,88392.0,88391.0,0.03384352]
[1740530937708,0.4715464,88392.0,88391.0,0.03384352]
[1740530939631,0.4715464,88392.0,88391.0,0.0014242]
[1740530941814,0.5501464,88392.0,88391.0,0.0014242]
[1740530942062,0.469702,88390.0,88389.0,0.24470038]
[1740530944556,0.474702,88390.0,88389.0,0.24470038]
[1740530944900,0.476702,88390.0,88389.0,0.24470038]
[1740530945276,0.481702,88390.0,88389.0,0.24470038]
[1740530946072,0.59555896,88390.0,88389.0,0.24470038]
[1740530946305,0.481702,88390.0,88389.0,0.24470038]
[1740530949586,0.181702,88390.0,88389.0,0.24470038]
[1740530953244,0.226267,88391.0,88389.0,0.24470038]
[1740530953245,0.22510809,88391.0,88389.0,0.24470038]
[1740530953448,0.169702,88390.0,88389.0,0.24470038]
[1740530957016,0.170702,88390.0,88389.0,0.24470038]
[1740530957768,0.169702,88390.0,88389.0,0.24470038]
[1740530958129,0.170702,88390.0,88389.0,0.24470038]
[1740530958326,0.172702,88390.0,88389.0,0.24470038]
[1740530958531,0.171702,88390.0,88389.0,0.24470038]
[1740530958769,0.172702,88390.0,88389.0,0.24470038]
[1740530959604,0.170702,88390.0,88389.0,0.24470038]
[1740530959806,0.174702,88390.0,88389.0,0.24470038]
[1740530961022,0.169702,88390.0,88389.0,0.24470038]
[1740530961237,0.173702,88390.0,88389.0,0.24470038]
[1740530961435,0.175702,88390.0,88389.0,0.24470038]
[1740530961662,0.171702,88390.0,88389.0,0.24470038]
[1740530962073,0.174702,88390.0,88389.0,0.24470038]
[1740530962610,0.174702,88390.0,88389.0,0.29020038]
[1740530962907,0.174702,88390.0,88389.0,0.36790038]
[1740530963104,0.472702,88390.0,88389.0,0.36790038]
[1740530963542,0.473702,88390.0,88389.0,0.36790038]
[1740530968373,0.21766264,88390.0,88389.0,0.36790038]
[1740530968578,0.170702,88390.0,88389.0,0.24470038]
[1740530971121,0.170702,88390.0,88389.0,0.17776038]
[1740530975032,0.170702,88390.0,88389.0,0.05202028]
[1740530976590,0.0008482,88391.0,88389.0,0.05202028]
[1740530977193,0.169702,88390.0,88389.0,0.05202028]
[1740530977399,0.469702,88390.0,88389.0,0.05202028]
[1740530977811,0.469702,88390.0,88388.0,0.00017748]
[1740530977812,0.469704,88389.0,88388.0,0.00017748]
[1740530980169,0.471704,88389.0,88388.0,0.00017748]
[1740530981272,0.169723,88379.0,88378.0,0.0479]
[1740530981453,0.169723,88379.0,88323.0,1.09654]
[1740530981454,0.226303,88377.0,88340.0,0.09034903]
[1740530981627,0.169746,88367.0,88340.0,0.09034903]
[1740530982636,0.16979343,88367.0,88340.0,0.09034903]
[1740530982838,0.17079343,88367.0,88340.0,0.09034903]
[1740530983242,0.16976,88360.0,88329.0,0.09034903]
[1740530983473,0.16976,88360.0,88331.0,0.226419]
[1740530983624,0.16976,88360.0,88332.0,0.00158474]
[1740530983822,0.16976,88360.0,88338.0,0.1698]
[1740530984386,0.16976,88360.0,88357.0,0.0788]
[1740530984890,0.17376,88360.0,88357.0,0.0788]
[1740530986303,0.004,88360.0,88357.0,0.0788]
[1740530986517,4.743e-05,88367.0,88357.0,0.0788]
[1740530986745,0.001,88360.0,88357.0,0.0788]
[1740530987245,0.16976,88360.0,88357.0,0.0788]